fUSD/lending_fUSD_20250526
["ID","MTS","AMOUNT","RATE_DAILY","PERIOD"]
[362393896,1748247039377,-748.04,0.00026408,120]
[362393897,1748247039387,-1152.0,0.00026426,2]
[362393898,1748247039398,-159.46961959,0.00026473,2]
[362393899,1748247039408,-5154.219552,0.0002648,3]
[362393900,1748247039424,-2577.2,0.0002648,3]
[362393901,1748247039437,-3302.3141654,0.0002648,3]
[362393902,1748247040084,-420.0,0.00023598,2]
[362393903,1748247040095,-108.45707984,0.0002648,2]
[362393904,1748247040106,-51.54292016,0.0002648,2]
[362393905,1748247040116,-3962.45707984,0.0002648,3]
[362393906,1748247040127,-1983.72485226,0.0002648,3]
[362393907,1748247040137,-1080.54940825,0.00026489,2]
[362393910,1748247042841,-317.68656233,0.00026489,2]
[362393911,1748247043084,-2443.07402942,0.00026489,2]
[362393912,1748247043095,-28299.8594159,0.0002649,3]
[362393913,1748247043105,-420.0,0.00026499,2]
[362393914,1748247043115,-420.0,0.00026499,2]
[362393915,1748247043128,-420.0,0.00026499,2]
[362393916,1748247043138,-420.0,0.00026499,2]
[362393917,1748247043148,-420.0,0.00026499,2]
[362393918,1748247043157,-420.0,0.00026499,2]
[362393919,1748247043167,-420.0,0.00026499,2]
[362393920,1748247043177,-441.57861787,0.00026499,2]
[362393921,1748247043187,-329.1,0.00026499,2]
[362393922,1748247043197,-193.88,0.00026499,2]
[362393924,1748247043206,-170.36,0.00026499,2]
[362393925,1748247043216,-46333.24326862,0.000265,2]
[362393926,1748247043226,-10000.0,0.000265,7]
[362393927,1748247043240,-200.0,0.00026523,2]
[362393928,1748247043251,-200.0,0.00026523,2]
[362393929,1748247043261,-200.0,0.00026523,2]
[362393930,1748247043271,-200.0,0.00026523,2]
[362393931,1748247043282,-155.0,0.00026548,2]
[362393933,1748247043291,-5659.97188318,0.0002659,3]
[362393935,1748247043301,-800.0,0.000266,2]
[362393937,1748247043310,-555.0,0.000266,2]
[362393940,1748247043322,-1463.0,0.000266,2]
[362393943,1748247043331,-923.0,0.000266,2]
[362393946,1748247043340,-248.56,0.00026676,2]
[362393948,1748247043350,-5659.97188318,0.00026689,3]
[362393950,1748247043360,-337.0,0.00026699,2]
[362393952,1748247043369,-420.0,0.00026699,2]
[362393955,1748247043379,-420.0,0.00026699,2]
[362393958,1748247043389,-420.0,0.00026699,2]
[362393960,1748247043398,-211.38,0.00026699,2]
[362393962,1748247043408,-212.54,0.00026699,2]
[362393964,1748247043418,-420.0,0.00026699,2]
[362393966,1748247043427,-500.35,0.00026699,2]
[362393968,1748247043436,-420.0,0.00026699,2]
[362393970,1748247043446,-256.65809976,0.00026699,2]
[362393972,1748247043455,-666.0,0.00026699,2]
[362393974,1748247043464,-420.0,0.00026699,2]
[362393976,1748247043473,-420.0,0.00026699,2]
[362393978,1748247043482,-420.0,0.00026699,2]
[362393980,1748247043492,-420.0,0.00026699,2]
[362393982,1748247043501,-420.0,0.00026699,2]
[362393984,1748247043511,-460.72516754,0.00026699,2]
[362393986,1748247043520,-420.0,0.00026699,2]
[362393987,1748247043530,-420.0,0.00026699,2]
[362393989,1748247043540,-420.0,0.00026699,2]
[362393991,1748247043550,-500.0,0.00026699,2]
[362393993,1748247043560,-220.12,0.00026699,2]
[362393995,1748247043569,-420.0,0.00026699,2]
[362393997,1748247043579,-452.41607968,0.00026699,2]
[362393998,1748247043588,-420.0,0.00026699,2]
[362394000,1748247043597,-420.0,0.00026699,2]
[362394002,1748247043606,-294.26339192,0.00026699,2]
[362394004,1748247043616,-277.98746282,0.00026699,2]
[362394006,1748247043626,-239.24,0.00026699,2]
[362394008,1748247043636,-223.73921404,0.00026699,2]
[362394010,1748247043645,-715.0,0.000267,4]
[362394012,1748247043656,-181.08010149,0.00026753,2]
[362394014,1748247043666,-248.71531821,0.00026753,2]
[362394016,1748247043675,-200.0,0.00026788,2]
[362394018,1748247043684,-200.0,0.00026788,2]
[362394020,1748247043693,-200.0,0.00026788,2]
[362394022,1748247043702,-200.0,0.00026788,2]
[362394024,1748247043711,-251.11897888,0.0002685,2]
[362394025,1748247043720,-610.87,0.000269,31]
[362394027,1748247043729,-610.87,0.000269,31]
[362394029,1748247043739,-610.87,0.000269,31]
[362394031,1748247043747,-610.87,0.000269,31]
[362394033,1748247043757,-610.87,0.000269,31]
[362394035,1748247043766,-610.87,0.000269,31]
[362394037,1748247043776,-610.87,0.000269,31]
[362394039,1748247043785,-610.87,0.000269,31]
[362394041,1748247043794,-610.87,0.000269,31]
[362394043,1748247043804,-610.87,0.000269,31]
[362394045,1748247043813,-610.87,0.000269,31]
[362394047,1748247043823,-610.87,0.000269,31]
[362394049,1748247043832,-610.87,0.000269,31]
[362394051,1748247043841,-610.87,0.000269,31]
[362394053,1748247043851,-610.87,0.000269,31]
[362394055,1748247043860,-610.87,0.000269,31]
[362394057,1748247043870,-1000.0,0.00026942,2]
[362394059,1748247043879,-5659.97188318,0.00026963,3]
[362394061,1748247043888,-1442.22,0.00026969,2]
[362394063,1748247043898,-159.46571924,0.00026973,2]
[362394065,1748247043908,-168.85,0.00026979,2]
[362394067,1748247043917,-168.85,0.00026979,2]
[362394068,1748247043927,-35288.89453108,0.0002698,3]
[362394218,1748247045664,-1058.03402747,0.0002698,3]
[362394258,1748247046158,-2916.12772199,0.0002698,3]
[362394488,1748247903095,250.0,0.00015,2]
[362394489,1748247932882,386.78346942,0.0002,120]
[362394498,1748248036467,205.0,9.8e-05,2]
[362394500,1748248075378,1518.66659733,0.0001,2]
[362394501,1748248076635,223.71,0.00013699,2]
[362394502,1748248077263,712.77381612,0.00015,2]
[362394503,1748248095298,200.0,0.0001634,2]
[362394504,1748248114929,1697.0850521,0.000149,2]
[362394522,1748248153091,-300.0,0.00017,2]
[362394523,1748248220083,84.39787196,0.000149,2]
[362394524,1748248220106,115.60212804,0.000149,2]
[362394537,1748248231791,-200.0,0.00018,2]
[362394538,1748248231801,-250.0,0.0001805,2]
[362394539,1748248231810,-200.0,0.0001805,2]
[362394540,1748248231819,-427.01589515,0.000181,2]
[362394541,1748248231829,-250.0,0.00018454,2]
[362394542,1748248231838,-200.0,0.000187,2]
[362394543,1748248231847,-200.0,0.000187,2]
[362394544,1748248231859,-336.32,0.00018724,2]
[362394545,1748248231870,-200.0,0.00018747,2]
[362394546,1748248231880,-300.0,0.0001878,2]
[362394547,1748248231891,-964.66410485,0.0001878,2]
[362394694,1748248237717,-235.33589515,0.0001878,2]
[362394695,1748248237728,-4734.49776415,0.00018781,2]
[362394696,1748248237771,-3060.288,0.00018781,2]
[362394697,1748248237782,-3725.07815639,0.00018781,2]
[362394698,1748248237825,-931.67284232,0.00018781,2]
[362394699,1748248237881,-11448.46323714,0.00018781,2]
[362394700,1748248237891,-250.0,0.00018807,2]
[362394701,1748248237901,-150.0,0.00018886,7]
[362394702,1748248237913,-390.65445795,0.000189,2]
[362394703,1748248237923,-721.11,0.00018938,2]
[362394704,1748248237932,-350.0,0.00019,2]
[362394705,1748248237941,-164.883834,0.00019178,2]
[362394706,1748248237950,-164.883834,0.00019178,2]
[362394707,1748248237959,-164.883834,0.00019178,2]
[362394708,1748248237968,-154.601241,0.00019178,2]
[362394709,1748248237978,-154.601241,0.00019178,2]
[362394710,1748248237987,-151.930503,0.00019178,2]
[362394711,1748248237997,-1211.466128,0.00019178,2]
[362394712,1748248238006,-1211.466128,0.00019178,2]
[362394713,1748248238015,-1211.466128,0.00019178,2]
[362394714,1748248238024,-151.0,0.00019178,2]
[362394715,1748248238033,-183.09,0.00019178,2]
[362394716,1748248238043,-313.19,0.00019281,2]
[362394717,1748248238052,-200.0,0.000193,7]
[362394718,1748248238061,-164.883834,0.00019369,2]
[362394719,1748248238071,-154.601241,0.00019369,2]
[362394720,1748248238080,-1211.466128,0.00019369,2]
[362394721,1748248238089,-500.0,0.000194,7]
[362394722,1748248238098,-700.0,0.000195,7]
[362394723,1748248238107,-1000.0,0.000196,7]
[362394724,1748248238117,-1200.0,0.000197,7]
[362394725,1748248238126,-164.883834,0.00019726,2]
[362394726,1748248238136,-164.883834,0.00019726,2]
[362394727,1748248238146,-154.601241,0.00019726,2]
[362394729,1748248238158,-151.930503,0.00019726,2]
[362394731,1748248238167,-1211.466128,0.00019726,2]
[362394734,1748248238176,-1211.466128,0.00019726,2]
[362394736,1748248238186,-156.587,0.00019726,2]
[362394738,1748248238195,-4701.7457101,0.0001978,2]
[362394740,1748248238203,-200.0,0.000198,7]
[362394742,1748248238213,-250.0,0.000198,2]
[362394744,1748248238222,-200.0,0.000198,2]
[362394746,1748248238232,-164.883834,0.00019899,2]
[362394748,1748248238241,-164.883834,0.00019899,2]
[362394750,1748248238250,-164.883834,0.00019899,2]
[362394751,1748248238259,-154.601241,0.00019899,2]
[362394753,1748248238269,-154.601241,0.00019899,2]
[362394755,1748248238279,-1211.466128,0.00019899,2]
[362394757,1748248238288,-1211.466128,0.00019899,2]
[362394759,1748248238297,-1211.466128,0.00019899,2]
[362394761,1748248238307,-360.51142403,0.000199,2]
[362394763,1748248238316,-200.0,0.000199,7]
[362394765,1748248238325,-366.18485297,0.000199,2]
[362394767,1748248238334,-207.4,0.00019908,2]
[362394768,1748248238343,-164.883834,0.00019921,2]
[362394769,1748248238352,-154.601241,0.00019921,2]
[362394770,1748248238361,-1211.466128,0.00019921,2]
[362394771,1748248238370,-151.0,0.00019987,2]
[362394772,1748248238379,-164.883834,0.00019989,2]
[362394773,1748248238388,-154.601241,0.00019989,2]
[362394774,1748248238397,-151.930503,0.00019989,2]
[362394775,1748248238408,-1211.466128,0.00019989,2]
[362394776,1748248238418,-8799.91121447,0.0001999,2]
[362394777,1748248238427,-164.883834,0.00019992,2]
[362394778,1748248238436,-164.883834,0.00019992,2]
[362394779,1748248238445,-154.601241,0.00019992,2]
[362394780,1748248238453,-1211.466128,0.00019992,2]
[362394781,1748248238463,-1211.466128,0.00019992,2]
[362394782,1748248238472,-164.883834,0.00019993,2]
[362394783,1748248238480,-154.601241,0.00019993,2]
[362394784,1748248238489,-1211.466128,0.00019993,2]
[362394785,1748248238499,-164.883834,0.00019994,2]
[362394786,1748248238508,-164.883834,0.00019994,2]
[362394787,1748248238518,-154.601241,0.00019994,2]
[362394788,1748248238529,-1211.466128,0.00019994,2]
[362394789,1748248238538,-1211.466128,0.00019994,2]
[362394790,1748248238547,-228.33400352,0.00019994,2]
[362394791,1748248238557,-95264.2,0.00019995,2]
[362394792,1748248238569,-164.883834,0.00019997,2]
[362394793,1748248238579,-154.601241,0.00019997,2]
[362394794,1748248238588,-151.930503,0.00019997,2]
[362394795,1748248238598,-1211.466128,0.00019997,2]
[362394796,1748248238608,-164.883834,0.00019998,2]
[362394797,1748248238617,-154.601241,0.00019998,2]
[362394798,1748248238626,-1211.466128,0.00019998,2]
[362394799,1748248238636,-164.883834,0.00019999,2]
[362394800,1748248238646,-164.883834,0.00019999,2]
[362394801,1748248238657,-164.883834,0.00019999,2]
[362394802,1748248238668,-164.883834,0.00019999,2]
[362394803,1748248238677,-164.883834,0.00019999,2]
[362394804,1748248238687,-164.883834,0.00019999,2]
[362394805,1748248238696,-164.883834,0.00019999,2]
[362394806,1748248238705,-164.883834,0.00019999,2]
[362394807,1748248238715,-154.601241,0.00019999,2]
[362394808,1748248238726,-154.601241,0.00019999,2]
[362394809,1748248238735,-154.601241,0.00019999,2]
[362394810,1748248238744,-154.601241,0.00019999,2]
[362394811,1748248238754,-154.601241,0.00019999,2]
[362394812,1748248238763,-151.930503,0.00019999,2]
[362394813,1748248238772,-1211.466128,0.00019999,2]
[362394814,1748248238780,-1211.466128,0.00019999,2]
[362394815,1748248238790,-1211.466128,0.00019999,2]
[362394816,1748248238800,-1211.466128,0.00019999,2]
[362394817,1748248238808,-1211.466128,0.00019999,2]
[362394818,1748248238818,-1211.466128,0.00019999,2]
[362394819,1748248238827,-1211.466128,0.00019999,2]
[362394820,1748248238836,-1211.466128,0.00019999,2]
[362394821,1748248238845,-18271.24690171,0.00019999,2]
[362394822,1748248238854,-9781.90912499,0.00019999,2]
[362394823,1748248238863,-420.0,0.00019999,2]
[362394824,1748248238872,-420.0,0.00019999,2]
[362394825,1748248238881,-420.0,0.00019999,2]
[362394826,1748248238890,-420.0,0.00019999,2]
[362394827,1748248238899,-420.0,0.00019999,2]
[362394828,1748248238911,-420.0,0.00019999,2]
[362394829,1748248238920,-420.0,0.00019999,2]
[362394830,1748248238929,-420.0,0.00019999,2]
[362394831,1748248238939,-420.0,0.00019999,2]
[362394832,1748248238950,-420.0,0.00019999,2]
[362394833,1748248238960,-420.0,0.00019999,2]
[362394834,1748248238970,-214.23,0.00019999,2]
[362394835,1748248238980,-299.22795996,0.00019999,2]
[362394836,1748248238989,-420.0,0.00019999,2]
[362394837,1748248238999,-181.15,0.00019999,2]
[362394838,1748248239010,-420.0,0.00019999,2]
[362394839,1748248239019,-510.65598424,0.00019999,2]
[362394840,1748248239028,-420.0,0.00019999,2]
[362394841,1748248239038,-420.0,0.00019999,2]
[362394842,1748248239047,-488.79643901,0.00019999,2]
[362394843,1748248239056,-420.0,0.00019999,2]
[362394844,1748248239065,-425.3588901,0.00019999,2]
[362394845,1748248239074,-500.0,0.00019999,2]
[362394846,1748248239084,-420.0,0.00019999,2]
[362394847,1748248239093,-500.0,0.00019999,2]
[362394848,1748248239102,-204.97971323,0.00019999,2]
[362394849,1748248239111,-358.59841796,0.00019999,2]
[362394850,1748248239120,-179.08719943,0.00019999,2]
[362394851,1748248239129,-448.85569452,0.00019999,2]
[362394852,1748248239138,-500.0,0.00019999,2]
[362394853,1748248239147,-500.0,0.00019999,2]
[362394854,1748248239157,-500.0,0.00019999,2]
[362394855,1748248239166,-500.0,0.00019999,2]
[362394856,1748248239175,-500.0,0.00019999,2]
[362394857,1748248239185,-112915.60164888,0.0002,3]
[362394858,1748248240142,-366.18485287,0.000199,2]
[362394859,1748248240152,-573.84132907,0.0001999,2]
[362394860,1748248240164,-573.84132907,0.0001999,2]
[362394861,1748248240173,-573.84132907,0.0001999,2]
[362394862,1748248240183,-426.72245716,0.00019999,2]
[362394863,1748248240192,-420.0,0.00019999,2]
[362394864,1748248240203,-231529.31651584,0.0002,3]
[362394865,1748248240214,-525.32,0.0002,2]
[362394866,1748248240223,-113201.86128103,0.0002,2]
[362394873,1748248242854,-6592.8,0.0002,2]
[362394875,1748248242913,-366.18485287,0.000199,2]
[362394876,1748248242923,-67247.67591003,0.0002,2]
[362394877,1748248243074,-928.60134739,0.0002,2]
[362394878,1748248243129,-770.69613598,0.0002,2]
[362394879,1748248243141,-610.98651663,0.0002,2]
[362394886,1748248245870,-200.0,0.00017,2]
[362394887,1748248245882,-524.069462,0.0002,2]
[362394888,1748248245893,-4857.0,0.0002,2]
[362394889,1748248245905,-5491.098,0.0002,2]
[362394890,1748248245923,-271995.45968623,0.0002,2]
[362394891,1748248245979,-5156.4,0.0002,2]
[362394896,1748248365987,150.0,0.0002,30]
[362394897,1748248418811,190.44,0.0002,30]
[362394898,1748249034855,187.01,0.00025234,120]
[362394900,1748249219821,212.52,0.00013699,2]
[362394988,1748249335240,-306.39201304,0.00016949,2]
[362394989,1748249341148,-225.82261425,0.00016949,2]
[362395001,1748249432109,-363.61537271,0.00016949,2]
[362395002,1748249432120,-150.0,0.00018806,7]
[362395003,1748249432129,-360.55,0.00018827,2]
[362395004,1748249432138,-12.93072755,0.00018909,2]
[362395005,1748249432150,-350.0,0.00018909,2]
[362395006,1748249432162,-545.44642781,0.00018909,2]
[362395007,1748249432173,-291.62284464,0.00018909,2]
[362395008,1748249432182,-1261.20825336,0.0001891,2]
[362395009,1748249432193,-525.97462945,0.0001891,2]
[362395010,1748249432215,-11593.8968724,0.0001891,2]
[362395031,1748249437899,-10518.92024479,0.0001891,2]
[362395032,1748249437912,-250.0,0.00018913,2]
[362395033,1748249437922,-187.01,0.00018925,2]
[362395034,1748249437932,-153.181262,0.00019178,2]
[362395035,1748249437942,-168.389412,0.00019178,2]
[362395036,1748249437952,-151.930505,0.00019178,2]
[362395037,1748249437961,-465.948511,0.00019178,2]
[362395038,1748249437970,-465.948511,0.00019178,2]
[362395039,1748249437981,-465.948511,0.00019178,2]
[362395040,1748249437993,-151.187449,0.00019178,2]
[362395041,1748249438002,-151.187449,0.00019178,2]
[362395042,1748249438011,-154.601241,0.00019178,2]
[362395043,1748249438021,-151.930503,0.00019178,2]
[362395044,1748249438030,-164.883836,0.00019178,2]
[362395045,1748249438039,-154.601241,0.00019178,2]
[362395046,1748249438049,-151.930503,0.00019178,2]
[362395047,1748249438058,-279.569107,0.00019178,2]
[362395048,1748249438067,-279.569107,0.00019178,2]
[362395049,1748249438076,-279.569107,0.00019178,2]
[362395050,1748249438086,-164.883835,0.00019178,2]
[362395051,1748249438094,-154.601241,0.00019178,2]
[362395052,1748249438103,-151.0,0.00019178,2]
[362395053,1748249438113,-1500.0,0.00019178,2]
[362395054,1748249438122,-895.83,0.00019212,2]
[362395055,1748249438131,-1000.0,0.00019222,2]
[362395056,1748249438140,-1034.93759565,0.00019267,2]
[362395057,1748249438149,-465.948511,0.00019369,2]
[362395058,1748249438158,-279.569107,0.00019369,2]
[362395059,1748249438167,-250.0,0.00019494,2]
[362395060,1748249438177,-200.0,0.00019494,2]
[362395061,1748249438186,-1034.93759565,0.0001971,2]
[362395062,1748249438195,-465.948511,0.00019726,2]
[362395063,1748249438205,-465.948511,0.00019726,2]
[362395064,1748249438214,-151.187449,0.00019726,2]
[362395065,1748249438223,-154.601241,0.00019726,2]
[362395066,1748249438232,-164.883836,0.00019726,2]
[362395067,1748249438243,-279.569107,0.00019726,2]
[362395068,1748249438253,-279.569107,0.00019726,2]
[362395069,1748249438263,-156.587,0.00019726,2]
[362395070,1748249438272,-250.0,0.00019749,2]
[362395072,1748249438281,-14536.89782697,0.0001981,2]
[362395074,1748249438291,-335.3044,0.0001988,2]
[362395075,1748249438300,-2500.0,0.0001988,2]
[362395076,1748249438310,-1780.62658472,0.00019881,2]
[362395077,1748249438319,-1780.62658467,0.00019883,2]
[362395078,1748249438329,-1780.62658467,0.00019885,2]
[362395079,1748249438338,-1780.62658467,0.00019887,2]
[362395080,1748249438347,-1780.62658467,0.00019889,2]
[362395081,1748249438357,-1780.62658467,0.00019892,2]
[362395082,1748249438366,-1780.62658467,0.00019894,2]
[362395083,1748249438376,-1780.62658467,0.00019896,2]
[362395086,1748249438385,-1780.62658467,0.00019898,2]
[362395088,1748249438394,-465.948511,0.00019899,2]
[362395089,1748249438403,-465.948511,0.00019899,2]
[362395091,1748249438412,-465.948511,0.00019899,2]
[362395092,1748249438421,-151.187449,0.00019899,2]
[362395093,1748249438431,-154.601241,0.00019899,2]
[362395094,1748249438440,-279.569107,0.00019899,2]
[362395095,1748249438449,-279.569107,0.00019899,2]
[362395096,1748249438458,-279.569107,0.00019899,2]
[362395097,1748249438467,-380.6487241,0.000199,2]
[362395098,1748249438477,-154.76234157,0.000199,2]
[362395099,1748249438486,-311.25712512,0.000199,2]
[362395100,1748249438496,-311.25712493,0.000199,2]
[362395101,1748249438505,-311.25712493,0.000199,2]
[362395102,1748249438514,-311.25712493,0.000199,2]
[362395103,1748249438523,-311.25712493,0.000199,2]
[362395104,1748249438532,-311.25712493,0.000199,2]
[362395105,1748249438542,-311.25712493,0.000199,2]
[362395106,1748249438551,-311.25712493,0.000199,2]
[362395107,1748249438561,-311.25712493,0.000199,2]
[362395108,1748249438570,-311.25712493,0.000199,2]
[362395109,1748249438580,-391.59094398,0.000199,2]
[362395110,1748249438589,-311.25712493,0.000199,2]
[362395111,1748249438598,-311.25712493,0.000199,2]
[362395112,1748249438607,-1780.62658467,0.000199,2]
[362395113,1748249438615,-311.25712493,0.000199,2]
[362395114,1748249438624,-311.25712493,0.000199,2]
[362395115,1748249438634,-311.25712493,0.000199,2]
[362395116,1748249438643,-311.25712493,0.000199,2]
[362395117,1748249438653,-311.25712493,0.000199,2]
[362395118,1748249438661,-311.25712493,0.000199,2]
[362395119,1748249438671,-311.25712493,0.000199,2]
[362395120,1748249438680,-311.25712493,0.000199,2]
[362395121,1748249438692,-543.29253212,0.000199,2]
[362395122,1748249438701,-2945.93505268,0.000199,2]
[362395123,1748249438711,-151.0,0.00019908,2]
[362395124,1748249438719,-207.4,0.00019908,2]
[362395125,1748249438729,-465.948511,0.00019921,2]
[362395126,1748249438739,-151.187449,0.00019921,2]
[362395127,1748249438749,-154.601241,0.00019921,2]
[362395128,1748249438759,-279.569107,0.00019921,2]
[362395129,1748249438767,-12500.0,0.00019955,2]
[362395130,1748249438777,-12500.0,0.00019964,2]
[362395131,1748249438786,-2631.4,0.0001997,2]
[362395132,1748249438796,-12500.0,0.00019973,2]
[362395133,1748249438805,-540.0,0.00019973,2]
[362395134,1748249438815,-435.54980128,0.00019973,2]
[362395135,1748249438826,-501.80895195,0.00019973,2]
[362395136,1748249438838,-500.0,0.00019973,2]
[362395137,1748249438847,-421.48285405,0.00019979,2]
[362395138,1748249438856,-420.0,0.00019979,2]
[362395139,1748249438866,-420.0,0.00019979,2]
[362395140,1748249438877,-152.8693766,0.00019979,2]
[362395141,1748249438889,-449.37763418,0.00019979,2]
[362395142,1748249438899,-16005.50372789,0.0001998,2]
[362395143,1748249438919,-8974.08578356,0.0001998,2]
[362395144,1748249438935,-3439.0,0.0001998,2]
[362395145,1748249438957,-101232.55925299,0.0001998,2]
[362395146,1748249438968,-299.22795996,0.00019981,2]
[362395147,1748249438978,-4028.53,0.00019981,2]
[362395148,1748249438990,-420.0,0.00019981,2]
[362395149,1748249438999,-420.0,0.00019981,2]
[362395150,1748249439008,-299.92,0.00019981,2]
[362395151,1748249439017,-529.26,0.00019981,2]
[362395152,1748249439026,-420.0,0.00019981,2]
[362395153,1748249439036,-551.06,0.00019981,2]
[362395154,1748249439046,-421.28149432,0.00019981,2]
[362395155,1748249439057,-500.9327533,0.00019981,2]
[362395156,1748249439067,-422.89236233,0.00019981,2]
[362395157,1748249439076,-422.85553343,0.00019981,2]
[362395158,1748249439086,-420.0,0.00019981,2]
[362395159,1748249439095,-432.66,0.00019981,2]
[362395160,1748249439105,-420.0,0.00019981,2]
[362395161,1748249439115,-420.0,0.00019981,2]
[362395162,1748249439124,-420.0,0.00019981,2]
[362395163,1748249439134,-420.0,0.00019981,2]
[362395164,1748249439143,-420.0,0.00019981,2]
[362395165,1748249439152,-420.0,0.00019981,2]
[362395166,1748249439161,-420.0,0.00019981,2]
[362395167,1748249439171,-465.77533327,0.00019981,2]
[362395168,1748249439180,-420.0,0.00019981,2]
[362395169,1748249439189,-420.0,0.00019981,2]
[362395170,1748249439198,-420.0,0.00019981,2]
[362395171,1748249439208,-510.65598424,0.00019981,2]
[362395172,1748249439217,-420.0,0.00019981,2]
[362395173,1748249439226,-12500.0,0.00019981,2]
[362395174,1748249439235,-465.948511,0.00019989,2]
[362395175,1748249439246,-164.883836,0.00019989,2]
[362395176,1748249439255,-279.569107,0.00019989,2]
[362395177,1748249439264,-932.84930529,0.00019989,2]
[362395178,1748249439274,-932.84930529,0.0001999,2]
[362395179,1748249439284,-932.84930529,0.0001999,2]
[362395180,1748249439293,-12500.0,0.0001999,2]
[362395181,1748249439303,-12500.0,0.0001999,2]
[362395182,1748249439312,-465.948511,0.00019992,2]
[362395183,1748249439322,-465.948511,0.00019992,2]
[362395184,1748249439331,-151.187449,0.00019992,2]
[362395185,1748249439340,-154.601241,0.00019992,2]
[362395186,1748249439350,-279.569107,0.00019992,2]
[362395187,1748249439359,-279.569107,0.00019992,2]
[362395188,1748249439369,-465.948511,0.00019993,2]
[362395189,1748249439379,-151.187449,0.00019993,2]
[362395190,1748249439388,-279.569107,0.00019993,2]
[362395191,1748249439397,-465.948511,0.00019994,2]
[362395192,1748249439407,-465.948511,0.00019994,2]
[362395193,1748249439416,-151.187449,0.00019994,2]
[362395194,1748249439426,-154.601241,0.00019994,2]
[362395195,1748249439435,-279.569107,0.00019994,2]
[362395196,1748249439445,-279.569107,0.00019994,2]
[362395197,1748249439455,-465.948511,0.00019997,2]
[362395198,1748249439464,-164.883836,0.00019997,2]
[362395199,1748249439474,-279.569107,0.00019997,2]
[362395200,1748249439484,-420.0,0.00019997,2]
[362395201,1748249439495,-420.0,0.00019997,2]
[362395202,1748249439505,-420.0,0.00019997,2]
[362395203,1748249439516,-420.0,0.00019997,2]
[362395204,1748249439525,-420.0,0.00019997,2]
[362395205,1748249439534,-426.72245716,0.00019997,2]
[362395206,1748249439544,-420.0,0.00019997,2]
[362395207,1748249439554,-424.75810556,0.00019997,2]
[362395208,1748249439563,-425.3588901,0.00019997,2]
[362395209,1748249439573,-420.0,0.00019997,2]
[362395210,1748249439583,-420.0,0.00019997,2]
[362395211,1748249439592,-420.0,0.00019997,2]
[362395212,1748249439602,-420.0,0.00019997,2]
[362395213,1748249439612,-424.12526238,0.00019997,2]
[362395214,1748249439621,-500.0,0.00019997,2]
[362395215,1748249439630,-463.21428837,0.00019997,2]
[362395216,1748249439640,-421.82716794,0.00019997,2]
[362395217,1748249439650,-427.81772169,0.00019997,2]
[362395218,1748249439659,-423.89513442,0.00019997,2]
[362395219,1748249439670,-420.0,0.00019997,2]
[362395221,1748249439680,-422.58194854,0.00019997,2]
[362395222,1748249439690,-431.67006378,0.00019997,2]
[362395223,1748249439700,-420.0,0.00019997,2]
[362395224,1748249439709,-420.0,0.00019997,2]
[362395225,1748249439719,-420.0,0.00019997,2]
[362395226,1748249439728,-422.06176644,0.00019997,2]
[362395227,1748249439738,-425.80089415,0.00019997,2]
[362395228,1748249439747,-420.0,0.00019997,2]
[362395229,1748249439756,-447.03807474,0.00019997,2]
[362395230,1748249439766,-424.32267261,0.00019997,2]
[362395231,1748249439775,-420.0,0.00019997,2]